bitfinex-derivatives/quotes_ETHF0:USTF0_20250708
["timestamp","ask_amount","ask_price","bid_price","bid_amount"]
[1752015431291,2.05498,2612.1,2612.0,26.629]
[1752015431683,2.05498,2612.1,2612.0,27.39451]
[1752015432590,1.42158,2612.1,2612.0,26.629]
[1752015433286,1.42158,2612.1,2612.0,27.39451]
[1752015433486,1.42158,2612.1,2612.0,28.05431]
[1752015435091,0.6561,2612.1,2612.0,28.05431]
[1752015435390,1.42158,2612.1,2612.0,28.05431]
[1752015438295,0.6561,2612.1,2612.0,28.05431]
[1752015438692,1.42158,2612.1,2612.0,28.05431]
[1752015438994,0.6561,2612.1,2612.0,28.05431]
[1752015439693,1.43327,2612.2,2612.1,0.76548]
[1752015439893,3.36967,2612.2,2612.1,1.41648]
[1752015440093,3.36967,2612.2,2612.1,0.76548]
[1752015440298,3.36967,2612.2,2612.1,1.39838]
[1752015440592,4.36117,2612.2,2612.1,1.39838]
[1752015440792,4.36117,2612.2,2612.1,0.76548]
[1752015441299,4.36117,2612.2,2612.1,1.39838]
[1752015441498,4.36117,2612.2,2612.1,0.76548]
[1752015441992,4.36117,2612.2,2612.1,1.39838]
[1752015442393,3.36967,2612.2,2612.1,1.39838]
[1752015442899,5.61306869,2612.2,2612.1,25.973]
[1752015443496,5.61306869,2612.2,2612.1,26.73848]
[1752015443692,5.61306869,2612.2,2612.1,27.37138]
[1752015443896,5.61306869,2612.2,2612.1,26.73848]
[1752015444198,5.61306869,2612.2,2612.1,27.37138]
[1752015444389,7.06813338,2612.2,2612.1,26.73848]
[1752015445297,5.77843469,2612.2,2612.1,27.37138]
[1752015445500,4.05926469,2612.2,2612.1,27.37138]
[1752015446300,4.82471469,2612.2,2612.1,27.37138]
[1752015446998,4.05926469,2612.2,2612.1,27.37138]
[1752015447503,4.82471469,2612.2,2612.1,27.37138]
[1752015448298,4.05926469,2612.2,2612.1,27.37138]
[1752015450300,4.82471469,2612.2,2612.1,27.37138]
[1752015450699,4.82471469,2612.2,2612.1,26.6059]
[1752015450899,5.77841469,2612.2,2612.1,26.6059]
[1752015451094,5.77910212,2612.2,2612.1,25.973]
[1752015452499,5.77910212,2612.2,2612.1,26.6059]
[1752015452797,5.77910212,2612.2,2612.1,25.973]
[1752015453199,5.77910212,2612.2,2612.1,26.73848]
[1752015453800,5.77910212,2612.2,2612.1,27.37138]
[1752015454498,5.77910212,2612.2,2612.1,26.6059]
[1752015455096,5.77910212,2612.2,2612.1,27.37138]
[1752015455296,5.77910212,2612.2,2612.1,26.6059]
[1752015456298,5.77910212,2612.2,2612.1,29.8137]
[1752015458100,4.82540212,2612.2,2612.1,29.8137]
[1752015458802,5.77910212,2612.2,2612.1,29.8137]
[1752015459305,5.77910212,2612.2,2612.1,30.57918]
[1752015459902,5.77910212,2612.2,2612.1,29.8137]
[1752015460704,5.77910212,2612.2,2612.1,30.57918]
[1752015461607,5.77910212,2612.2,2612.1,29.8137]
[1752015462107,5.77910212,2612.2,2612.1,30.57918]
[1752015463907,5.77910212,2612.2,2612.1,29.8137]
[1752015465108,5.77910212,2612.2,2612.1,30.57918]
[1752015468408,5.77910212,2612.2,2612.1,29.8137]
[1752015469012,5.77910212,2612.2,2612.1,26.6059]
[1752015469708,4.82540212,2612.2,2612.1,27.37138]
[1752015469910,4.82540212,2612.2,2612.1,28.00808]
[1752015470313,5.77910212,2612.2,2612.1,28.00808]
[1752015470713,5.77910212,2612.2,2612.1,27.2426]
[1752015476417,5.81190212,2612.2,2612.1,27.2426]
[1752015476717,5.81190212,2612.2,2612.1,28.00808]
[1752015477822,5.81190212,2612.2,2612.1,27.2426]
[1752015478124,5.81190212,2612.2,2612.1,28.00808]
[1752015479420,4.82540212,2612.2,2612.1,28.00808]
[1752015482120,4.05995212,2612.2,2612.1,28.00808]
[1752015482418,2.13885212,2612.2,2612.1,29.03997037]
[1752015483222,2.90430212,2612.2,2612.1,29.03997037]
[1752015483822,2.22120212,2612.2,2612.1,29.03997037]
[1752015484023,2.13885212,2612.2,2612.1,29.03997037]
[1752015484424,2.90430212,2612.2,2612.1,29.03997037]
[1752015485426,1.45575212,2612.2,2612.1,30.02247037]
[1752015485923,2.13885212,2612.2,2612.1,29.03997037]
[1752015486126,2.22120212,2612.2,2612.1,29.03997037]
[1752015486421,1.45575212,2612.2,2612.1,29.03997037]
[1752015486825,2.13885212,2612.2,2612.1,29.03997037]
[1752015487226,0.6831,2612.2,2612.1,29.03997037]
[1752015488026,1.44855,2612.2,2612.1,29.03997037]
[1752015488323,0.6831,2612.2,2612.1,29.03997037]
[1752015489328,0.6831,2612.2,2612.1,32.24777037]
[1752015490124,1.44855,2612.2,2612.1,32.24777037]
[1752015490330,1.44855,2612.2,2612.1,26.5989]
[1752015490331,3.93595262,2612.2,2612.1,26.5989]
[1752015490528,4.92245262,2612.2,2612.1,27.36438]
[1752015490734,3.93595262,2612.2,2612.1,27.36438]
[1752015491034,2.90406225,2612.2,2612.1,27.36438]
[1752015491331,2.90406225,2612.2,2612.1,28.39627037]
[1752015493127,2.13861225,2612.2,2612.1,28.39627037]
[1752015493931,2.90406225,2612.2,2612.1,28.39627037]
[1752015497034,2.22096225,2612.2,2612.1,27.76337037]
[1752015498434,2.22096225,2612.2,2612.1,26.73148]
[1752015498739,2.22096225,2612.2,2611.8,3.97337]
[1752015498740,0.76554,2611.9,2611.8,3.97337]
[1752015498937,2.22105225,2611.9,2611.8,29.93837]
[1752015499134,3.89065225,2611.9,2611.8,29.8612]
[1752015500031,1.44864,2611.9,2611.8,29.8612]
[1752015501238,1.44864,2611.9,2611.8,3.8962]
[1752015501434,1.44864,2611.9,2611.8,29.8612]
[1752015502837,2.71644,2611.9,2611.8,29.8612]
[1752015503334,3.73414,2611.9,2611.8,29.8612]
[1752015504839,2.71644,2611.9,2611.8,26.6534]
[1752015505039,2.71644,2611.9,2611.8,27.41897]
[1752015505439,2.71644,2611.9,2611.8,26.6534]
[1752015507644,3.73414,2611.9,2611.8,26.6534]
[1752015510541,0.76559,2611.7,2611.6,3.2078]
[1752015510743,3.46418037,2611.7,2611.6,29.8017]
[1752015511344,3.83218037,2611.7,2611.6,29.8017]
[1752015512952,2.80029,2611.7,2611.6,29.8017]
[1752015513248,3.81799,2611.7,2611.6,29.8017]
[1752015516759,3.81799,2611.7,2611.6,0.6279]
[1752015517056,3.81799,2611.7,2611.6,26.5949]
[1752015524356,2.80029,2611.7,2611.6,26.5949]
[1752015524658,1.41459,2611.7,2611.6,27.2751]
[1752015525051,1.41459,2611.7,2611.6,30.4829]
[1752015526848,0.76568,2611.4,2611.3,58.3418]
[1752015527050,0.76568,2611.4,2611.3,29.1748]
[1752015527355,0.76568,2611.4,2611.3,29.8027]
[1752015527656,1.41468,2611.4,2611.3,29.8027]
[1752015528253,1.41468,2611.4,2611.3,30.56841]
[1752015528856,1.41468,2611.4,2611.3,29.8027]
[1752015530455,2.43238,2611.4,2611.3,3.8424]
[1752015530655,2.43238,2611.4,2611.3,29.8094]
[1752015530853,2.43238,2611.4,2611.3,3.8424]
[1752015531053,5.17170275,2611.4,2611.3,0.6346]
[1752015531252,3.71418,2611.4,2611.3,26.6016]
[1752015534161,2.69648,2611.4,2611.3,26.6016]
[1752015534857,1.91394,2611.8,2611.3,26.6016]
[1752015534858,3.24992096,2611.9,2611.3,31.82184515]
[1752015535064,6.62787862,2612.2,2611.3,31.82184515]
[1752015535065,1.45671518,2611.8,2611.7,0.76559]
[1752015535251,0.76555,2611.9,2611.7,27.76613515]
[1752015535452,0.76554,2611.9,2611.8,0.6487]
[1752015535863,0.76557,2611.8,2611.7,25.968]
[1752015536057,2.72367,2611.8,2611.7,25.968]
[1752015536259,0.7656,2611.7,2611.6,29.9424]
[1752015536460,2.72368,2611.8,2611.7,0.7656]
[1752015538365,3.34978,2611.8,2611.7,1.4002]
[1752015538565,3.34978,2611.8,2611.7,0.6346]
[1752015540173,4.30498,2611.8,2611.7,0.6346]
[1752015542368,0.76559,2611.7,2611.6,25.969]
[1752015542570,3.67259,2611.7,2611.6,25.969]
[1752015543169,0.76562,2611.6,2611.5,0.76564]
[1752015543364,2.34692,2611.6,2611.5,1.40024]
[1752015543666,1.39172,2611.6,2611.5,4.60804]
[1752015544064,0.6261,2611.6,2611.5,5.8983295]
[1752015544262,1.39172,2611.6,2611.5,3.8424]
[1752015544963,0.6261,2611.6,2611.5,4.60805]
[1752015547070,0.76561,2611.7,2611.6,0.76562]
[1752015547266,1.39171,2611.7,2611.6,27.37122]
[1752015547565,1.39171,2611.7,2611.6,27.2567]
[1752015547772,2.34691,2611.7,2611.6,26.6221]
[1752015548068,3.65581,2611.7,2611.6,25.971]
[1752015548365,5.95326689,2611.7,2611.6,26.6056]
[1752015548570,5.95326689,2611.7,2611.6,25.971]
[1752015548770,5.95326689,2611.7,2611.6,26.6056]
[1752015550173,0.76568,2611.4,2611.3,0.6787]
[1752015550378,0.76571,2611.3,2611.2,3.2078]
[1752015550670,3.41360289,2611.3,2611.2,29.7871403]
[1752015550877,3.41360289,2611.3,2611.2,0.5983403]
[1752015550878,5.92698441,2611.3,2611.2,0.5983403]
[1752015551070,4.63669491,2611.3,2611.2,0.5983403]
[1752015551262,4.63669491,2611.3,2611.2,1.2329403]
[1752015551466,3.71763133,2611.3,2611.2,1.83128899]
[1752015552471,3.71763133,2611.3,2611.2,1.2329403]
[1752015553068,3.71763133,2611.3,2611.2,1.9175403]
[1752015554172,8.30416243,2611.3,2611.2,1.9175403]
[1752015554373,6.72286243,2611.3,2611.2,1.2829403]
[1752015554574,7.34896243,2611.3,2611.2,1.9175403]
[1752015555073,2.76243133,2611.3,2611.2,1.9175403]
[1752015555572,2.76243133,2611.3,2611.2,3.9735698]
[1752015555573,2.13633133,2611.3,2611.2,3.9735698]
[1752015555775,2.76243133,2611.3,2611.2,3.9735698]
[1752015556672,2.26458336,2611.3,2611.2,3.2078298]
[1752015556873,2.26458336,2611.3,2611.2,3.9735698]
[1752015557075,2.26458336,2611.3,2611.2,3.2078298]
[1752015557275,2.26458336,2611.3,2611.2,3.9735698]
[1752015558077,2.26458336,2611.3,2611.2,1.9175403]
[1752015558279,2.26458336,2611.3,2611.2,2.6832803]
[1752015558979,2.26458336,2611.3,2611.2,5.8910803]
[1752015559381,0.87277336,2611.3,2611.2,8.1612698]
[1752015559781,0.87277336,2611.3,2611.2,34.1472698]
[1752015560077,4.31089694,2611.3,2611.2,34.1472698]
[1752015560675,3.31525014,2611.3,2611.2,34.1472698]
[1752015562780,2.81742835,2611.3,2611.2,34.1472698]
[1752015563381,2.81742835,2611.3,2611.2,33.1673698]
[1752015563883,2.81742835,2611.3,2611.2,34.10917282]
[1752015564181,2.81742835,2611.3,2611.2,33.16737282]
[1752015564582,0.76566,2611.5,2611.4,0.76568]
[1752015564779,1.44066,2611.5,2611.4,2.00822332]
[1752015565584,1.19175453,2611.5,2611.4,2.00822332]
[1752015567886,2.14755453,2611.5,2611.4,1.24254332]
[1752015568085,2.14755453,2611.5,2611.4,0.6442]
[1752015571783,2.14755453,2611.5,2611.4,1.40988]
[1752015572683,1.19175453,2611.5,2611.4,4.83118203]
[1752015575088,2.14755453,2611.5,2611.4,4.83118203]
[1752015575785,2.14755453,2611.5,2611.4,4.06550203]
[1752015576290,2.14755453,2611.5,2611.4,4.83118203]
[1752015579291,1.19175453,2611.5,2611.4,4.83118203]
[1752015582698,1.19175453,2611.5,2611.4,1.40988]
[1752015583494,2.14755453,2611.5,2611.4,1.40988]
[1752015584201,2.14755453,2611.5,2611.4,4.83389109]
[1752015584502,2.14755453,2611.5,2611.4,1.40988]
[1752015584702,2.14755453,2611.5,2611.4,4.06821317]
[1752015585303,2.14755453,2611.5,2611.4,0.6442]
[1752015589402,2.14755453,2611.5,2611.4,1.40988]
[1752015589702,2.14755453,2611.5,2611.4,0.6442]
[1752015593908,0.76568,2611.4,2611.3,3.97349]
[1752015594110,1.43278,2611.4,2611.3,4.60349]
[1752015594299,1.43278,2611.4,2611.3,3.97349]
[1752015594906,2.44158,2611.4,2611.3,4.60349]
[1752015597011,0.76568,2611.4,2611.3,3.97349]
[1752015599013,1.43278,2611.4,2611.3,4.60349]
[1752015599214,1.43278,2611.4,2611.3,3.97349]
[1752015599808,1.43278,2611.4,2611.3,4.60349]
[1752015602012,2.96918469,2611.4,2611.3,4.60349]
[1752015602213,3.97798469,2611.4,2611.3,4.60349]
[1752015604011,3.97798469,2611.4,2611.3,3.8378]
[1752015604209,3.97798944,2611.4,2611.3,3.8378]
[1752015605510,2.30208944,2611.4,2611.3,4.60351]
[1752015605810,2.96914435,2611.4,2611.3,3.8378]
[1752015606212,2.96914435,2611.4,2611.3,4.60351]
[1752015606411,2.96914435,2611.4,2611.3,3.8378]
[1752015606711,2.96914435,2611.4,2611.3,4.60351]
[1752015607510,1.53636435,2611.4,2611.3,4.60351]
[1752015607707,5.50059897,2612.0,2611.8,0.76556]
[1752015607907,4.64041,2612.0,2611.9,1.72100414]
[1752015608106,6.17664587,2612.0,2611.9,2.35100414]
[1752015608310,6.17664587,2612.0,2611.9,1.72100414]
[1752015608511,6.17664587,2612.0,2611.9,2.35100414]
[1752015609011,7.18544587,2612.0,2611.9,1.3186]
[1752015610209,7.18544587,2612.0,2611.9,28.05314]
[1752015610210,4.74403587,2612.0,2611.9,28.05314]
[1752015610610,6.17664587,2612.0,2611.9,27.2876]
[1752015612318,2.96884587,2612.0,2611.9,27.2876]
[1752015613615,2.96884587,2612.0,2611.9,30.4954]
[1752015614016,2.96884587,2612.0,2611.9,27.2876]
[1752015616123,1.43261,2612.0,2611.9,27.2876]
[1752015616623,5.26343306,2612.0,2611.9,25.969]
[1752015616923,0.76554,2611.9,2611.8,25.965]
[1752015617126,1.43264,2611.9,2611.8,25.965]
[1752015617325,1.43264,2611.9,2611.8,26.595]
[1752015621121,1.43264,2611.9,2611.8,27.36057]
[1752015621527,1.43264,2611.9,2611.8,26.595]
[1752015622122,0.76554,2611.9,2611.8,27.8848778]
[1752015623225,1.44594,2611.9,2611.8,27.8848778]
[1752015623524,1.44594,2611.9,2611.8,26.595]
[1752015625625,0.76554,2611.9,2611.8,28.6504478]
[1752015625830,0.76554,2611.9,2611.8,29.6560478]
[1752015626630,0.76554,2611.9,2611.8,28.6504478]
[1752015627026,0.6546,2612.2,2611.8,28.8904778]
[1752015627226,0.7654,2612.4,2612.2,0.76545]
[1752015627433,1.4458,2612.4,2612.3,5.1797778]
[1752015627728,2.97722905,2612.4,2612.3,5.1797778]
[1752015627927,2.97722905,2612.4,2612.3,4.5289]
[1752015628127,2.97722905,2612.4,2612.3,3.8899]
[1752015628531,2.97722905,2612.4,2612.3,4.5289]
[1752015628830,3.98512905,2612.4,2612.3,4.5289]
[1752015629132,2.4537,2612.4,2612.3,4.5289]
[1752015634529,2.4537,2612.4,2612.3,5.29432]
[1752015634730,1.4458,2612.4,2612.3,5.29432]
[1752015635234,1.4458,2612.4,2612.3,4.5289]
[1752015635435,2.4537,2612.4,2612.3,4.5289]
[1752015635635,4.00216408,2612.4,2612.3,1.3211]
[1752015635837,5.33796408,2612.4,2612.3,1.3211]
[1752015642437,4.33006408,2612.4,2612.3,1.3211]
[1752015642643,5.33796408,2612.4,2612.3,1.3211]
[1752015648341,1.91356,2612.3,2611.9,3.2078]
[1752015648544,0.76548,2612.1,2612.0,25.958]
[1752015648849,2.45378,2612.1,2612.0,25.958]
[1752015649049,1.44588,2612.1,2612.0,25.958]
[1752015649243,1.44588,2612.1,2612.0,26.597]
[1752015649450,1.44588,2612.1,2612.0,25.958]
[1752015650245,1.44588,2612.1,2612.0,26.72351]
[1752015650444,1.44588,2612.1,2612.0,27.39411]
[1752015650951,1.44588,2612.1,2612.0,26.6286]
[1752015651753,1.44588,2612.1,2612.0,27.39411]
[1752015652050,1.44588,2612.1,2612.0,26.6286]
[1752015656558,0.76547,2612.2,2612.1,0.76547]
[1752015656756,0.76547,2612.2,2612.1,1.43607]
[1752015657050,3.00239879,2612.2,2612.1,1.3066]
[1752015657257,2.31659879,2612.2,2612.1,1.3066]
[1752015657561,3.00239879,2612.2,2612.1,2.07208]
[1752015658159,3.00239879,2612.2,2612.1,1.3066]
[1752015659161,3.00239879,2612.2,2612.1,0.636]
[1752015659360,1.55112879,2612.2,2612.1,6.56982474]
[1752015659561,2.23692879,2612.2,2612.1,6.56982474]
[1752015660163,2.23692879,2612.2,2612.1,5.27988]
[1752015660660,3.00237879,2612.2,2612.1,3.8438]
[1752015660856,3.00237879,2612.2,2612.1,4.5144]
[1752015661056,3.00237879,2612.2,2612.1,3.8438]
[1752015661462,0.76552,2612.0,2611.9,25.957]
[1752015661663,0.76552,2612.0,2611.9,1.43614]
[1752015661960,0.76552,2612.0,2611.9,27.39314]
[1752015663963,0.76552,2612.0,2611.9,26.6276]
[1752015664965,1.45132,2612.0,2611.9,27.39314]
[1752015667769,1.45132,2612.0,2611.9,26.6276]
[1752015668167,1.45132,2612.0,2611.9,27.39314]
[1752015668568,1.45132,2612.0,2611.9,26.6276]
[1752015669168,2.41472,2612.0,2611.9,26.6276]
[1752015669865,1.45132,2612.0,2611.9,27.39314]
[1752015670060,0.76552,2612.0,2611.9,27.39314]
[1752015670761,2.41472,2612.0,2611.9,0.6706]
[1752015670964,0.76557,2611.8,2611.7,0.679]
[1752015671167,0.76554,2611.9,2611.8,0.76556]
[1752015671464,0.76554,2611.9,2611.8,1.43616]
[1752015671465,2.32060468,2611.9,2611.8,1.43616]
[1752015671972,3.00640468,2611.9,2611.8,0.6706]
[1752015672561,0.76557,2611.8,2611.7,27.40158]
[1752015672766,0.76557,2611.8,2611.7,28.07218]
[1752015672967,1.45137,2611.8,2611.7,26.636]
[1752015673374,1.45137,2611.8,2611.7,27.3066]
[1752015676473,1.45137,2611.8,2611.7,28.07319]
[1752015681679,1.45137,2611.8,2611.7,27.3076]
[1752015683780,1.45137,2611.8,2611.7,28.07319]
[1752015683981,1.45137,2611.8,2611.7,27.3076]
[1752015684180,1.45137,2611.8,2611.7,28.07319]
[1752015684480,1.45137,2611.8,2611.7,27.3076]
[1752015685282,1.45137,2611.8,2611.7,28.07319]
[1752015685871,3.42969776,2611.8,2611.7,1.3496]
[1752015686077,0.76559,2611.7,2611.6,3.2078]
[1752015686271,4.44929,2611.7,2611.6,29.1678]
[1752015687182,4.44929,2611.7,2611.6,3.2078]
[1752015687581,4.44929,2611.7,2611.6,25.96]
[1752015688886,5.73984869,2611.7,2611.6,25.96]
[1752015689087,5.73984869,2611.7,2611.6,26.6543]
[1752015689288,5.73984869,2611.7,2611.6,25.96]
[1752015690787,5.73984869,2611.7,2611.6,26.6543]
[1752015691387,7.29445484,2611.7,2611.6,26.6543]
[1752015693188,2.99959615,2611.7,2611.6,27.41992]
[1752015693484,0.76555,2611.9,2611.6,27.596]
[1752015693687,2.31974349,2611.8,2611.7,2.05613869]
[1752015693881,2.31974349,2611.8,2611.7,28.66763869]
[1752015694077,2.31974349,2611.8,2611.7,29.36193869]
[1752015694584,1.55416349,2611.8,2611.7,29.36193869]
[1752015695287,0.76555,2611.9,2611.8,0.76557]
[1752015695483,1.44495,2611.9,2611.8,1.45987]
[1752015695682,2.99997596,2611.9,2611.8,1.45987]
[1752015696687,2.99997596,2611.9,2611.8,0.76557]
[1752015696887,2.99997596,2611.9,2611.8,1.45987]
[1752015697089,2.99997596,2611.9,2611.8,0.6943]
[1752015697289,1.44495,2611.9,2611.8,4.66767]
[1752015697491,3.00024004,2611.9,2611.8,4.66767]
[1752015698292,4.55485667,2611.9,2611.8,3.9021]
[1752015698591,4.55485667,2611.9,2611.8,4.66767]
[1752015698990,3.00024004,2611.9,2611.8,4.66767]
[1752015699292,4.55499907,2611.9,2611.8,0.6943]
[1752015700292,6.79175776,2611.9,2611.8,0.6943]
[1752015705094,3.11004907,2611.9,2611.8,1.45987]
[1752015705296,3.11004907,2611.9,2611.8,5.60937]
[1752015705494,1.55529004,2611.9,2611.8,6.92027]
[1752015706695,1.55529004,2611.9,2611.8,5.97857]
[1752015707491,1.55529004,2611.9,2611.8,6.92027]
[1752015715098,1.55529004,2611.9,2611.8,3.71247]
[1752015715299,1.55529004,2611.9,2611.8,6.92027]
[1752015716701,0.659,2612.5,2611.9,1.91382]
[1752015716903,1.2892,2612.5,2612.4,3.97319]
[1752015717101,2.3307,2612.5,2612.4,3.97319]
[1752015717301,2.3307,2612.5,2612.4,4.66709]
[1752015717695,2.3307,2612.5,2612.4,3.97319]
[1752015718101,2.3307,2612.5,2612.4,4.66709]
[1752015718298,3.09606,2612.5,2612.4,4.66709]
[1752015721214,3.09606,2612.5,2612.4,3.9017]
[1752015721715,2.05456,2612.5,2612.4,4.66709]
[1752015722313,3.09606,2612.5,2612.4,4.66709]
[1752015722513,3.09606,2612.5,2612.4,3.9017]
[1752015723116,3.09606,2612.5,2612.4,4.66709]
[1752015724918,2.3307,2612.5,2612.4,4.66709]
[1752015725117,3.09606,2612.5,2612.4,4.66709]
[1752015727410,2.05456,2612.5,2612.4,4.66709]
[1752015727717,2.05456,2612.5,2612.4,5.29919]
[1752015728119,3.09606,2612.5,2612.4,5.29919]
[1752015728317,3.09606,2612.5,2612.4,4.5338]
[1752015728618,4.41986,2612.5,2612.4,4.5338]
[1752015728918,4.41986,2612.5,2612.4,3.9017]
[1752015729517,4.41986,2612.5,2612.4,4.66709]
[1752015730824,4.41986,2612.5,2612.4,3.2078]
[1752015731120,0.76542,2612.3,2612.2,0.76543]
[1752015731321,0.76545,2612.2,2612.1,29.92527]
[1752015731522,4.38775,2612.2,2612.1,30.61917]
[1752015732118,4.38775,2612.2,2612.1,29.92527]
[1752015732524,3.6223,2612.2,2612.1,29.92527]
[1752015732720,3.6223,2612.2,2612.1,30.61917]
[1752015733022,4.38775,2612.2,2612.1,30.61917]
[1752015734725,3.6223,2612.2,2612.1,30.61917]
[1752015734925,2.5808,2612.2,2612.1,30.61917]
[1752015735127,3.34625,2612.2,2612.1,30.61917]
[1752015735723,2.5808,2612.2,2612.1,30.61917]
[1752015736028,1.3216,2612.2,2612.1,30.61917]
[1752015737932,0.76544,2612.3,2612.2,0.76545]
[1752015738231,0.76534,2612.6,2612.2,2.97785869]
[1752015738430,1.54152429,2612.5,2612.4,5.26371869]
[1752015738630,1.54152429,2612.5,2612.4,32.90301869]
[1752015738829,3.97305,2612.9,2612.7,0.76528]
[1752015739131,4.60325,2612.9,2612.8,0.6473]
[1752015739433,5.37971944,2612.9,2612.8,2.10647]
[1752015739627,7.18645944,2612.9,2612.8,2.10647]
[1752015739927,8.55825944,2612.9,2612.8,2.10647]
[1752015740130,5.35045944,2612.9,2612.8,1.3412]
[1752015744134,5.35045944,2612.9,2612.8,2.10647]
[1752015744335,2.93715944,2612.9,2612.8,2.10647]
[1752015745634,2.93715944,2612.9,2612.8,1.3412]
[1752015745836,2.93715944,2612.9,2612.8,4.549]
[1752015746138,2.93715944,2612.9,2612.8,5.31427]
[1752015746335,2.93715944,2612.9,2612.8,4.549]
[1752015746732,2.43094,2612.9,2612.8,4.549]
[1752015747434,2.43094,2612.9,2612.8,1.3412]
[1752015747641,0.76527,2612.8,2612.7,25.952]
[1752015747839,3.77382869,2612.8,2612.7,27.2377]
[1752015748040,3.77382869,2612.8,2612.7,26.6108]
[1752015748339,3.77382869,2612.8,2612.7,27.2377]
[1752015752741,4.40242869,2612.8,2612.7,27.2377]
[1752015754446,4.40242869,2612.8,2612.3,0.76541]
[1752015754447,0.76541,2612.4,2612.3,0.76541]
[1752015754643,1.44791,2612.4,2612.3,27.98751]
[1752015755033,1.44791,2612.4,2612.3,27.2221]
[1752015756240,1.44791,2612.4,2612.3,27.98752]
[1752015756443,0.76541,2612.4,2612.3,27.98752]
[1752015756641,0.76541,2612.4,2612.3,27.2221]
[1752015756842,1.44791,2612.4,2612.3,1.2751]
[1752015757039,1.44791,2612.4,2612.3,27.2211]
[1752015757239,1.29055869,2612.5,2612.3,27.2211]
[1752015757240,0.76537,2612.5,2612.3,27.98652]
[1752015757639,0.76537,2612.5,2612.3,28.94232]
[1752015757840,0.76539,2612.4,2612.3,28.94232]
[1752015758544,0.76539,2612.4,2612.3,27.98652]
[1752015758747,1.44789,2612.4,2612.3,27.98652]
[1752015758950,0.76539,2612.4,2612.3,27.98652]
[1752015759343,1.44789,2612.4,2612.3,27.98652]
[1752015759743,1.44789,2612.4,2612.3,27.2211]
[1752015760140,1.44789,2612.4,2612.3,26.5942]
[1752015760445,2.48339,2612.4,2612.3,27.2211]
[1752015760645,3.16609,2612.4,2612.3,27.2221]
[1752015761854,0.6825,2612.4,2612.3,27.98752]
[1752015762152,1.44789,2612.4,2612.3,27.98752]
[1752015762455,1.44789,2612.4,2612.3,27.2221]
[1752015763747,1.44789,2612.4,2612.3,27.98752]
[1752015767358,1.44789,2612.4,2612.3,27.98852]
[1752015767560,0.6825,2612.4,2612.3,27.98852]
[1752015768657,1.44789,2612.4,2612.3,27.98852]
[1752015768959,0.6825,2612.4,2612.3,27.98852]
[1752015769349,1.44789,2612.4,2612.3,27.98852]
[1752015770661,0.6825,2612.4,2612.3,27.98852]
[1752015771860,1.44789,2612.4,2612.3,27.98852]
[1752015772061,0.6825,2612.4,2612.3,27.98852]
[1752015773259,0.6825,2612.4,2612.2,3.2078]
[1752015773453,0.6825,2612.4,2611.9,4.56197293]
[1752015773454,0.76551,2612.0,2611.9,3.97333]
[1752015773651,1.41581,2612.0,2611.9,30.56353]
[1752015773851,2.41291,2612.0,2611.9,30.56353]
[1752015774154,0.76559,2611.7,2611.6,4.56197293]
[1752015774360,1.94085869,2611.7,2611.6,28.01102]
[1752015774561,2.70644869,2611.7,2611.6,27.36882]
[1752015775063,3.70354869,2611.7,2611.6,26.6062]
[1752015775363,3.70354869,2611.7,2611.6,27.2484]
[1752015775563,3.70354869,2611.7,2611.6,26.6062]
[1752015777661,2.93795869,2611.7,2611.4,3.97346]
[1752015777865,2.05620869,2611.5,2611.4,3.2078]
[1752015778165,2.05620869,2611.5,2611.4,3.85]
[1752015778367,2.05620869,2611.5,2611.4,29.806]
[1752015778662,3.70360869,2611.5,2611.4,29.1638]
[1752015778862,3.70360869,2611.5,2611.4,30.57168]
[1752015779261,3.70360869,2611.5,2611.4,29.806]
[1752015779761,3.70360869,2611.5,2611.4,29.811]
[1752015780355,3.70360869,2611.5,2611.4,30.57668]
[1752015781161,2.93795869,2611.5,2611.4,30.57668]
[1752015781361,0.6503,2611.5,2611.4,30.57668]
[1752015783566,1.41595,2611.5,2611.4,29.811]
[1752015783962,1.41595,2611.5,2611.4,30.57668]
[1752015784169,0.6503,2611.5,2611.4,30.57668]
[1752015785961,1.41595,2611.5,2611.4,30.57168]
[1752015786667,0.6503,2611.5,2611.4,30.57168]
[1752015789272,1.41595,2611.5,2611.4,30.57168]
[1752015789571,0.6503,2611.5,2611.4,30.57168]
[1752015789771,1.41595,2611.5,2611.4,30.57168]
[1752015790174,2.41305,2611.5,2611.4,30.57168]
[1752015792473,1.6474,2611.5,2611.4,30.57168]
[1752015792674,2.41305,2611.5,2611.4,30.57168]
[1752015792969,2.41305,2611.5,2611.4,3.2078]
[1752015792970,3.70360869,2611.5,2611.4,3.2078]
[1752015793175,4.28175869,2611.5,2611.0,3.2078]
[1752015793376,1.29055869,2611.2,2611.1,26.72176]
[1752015793576,1.94085869,2611.2,2611.1,26.72176]
[1752015793874,2.93795869,2611.2,2611.1,26.72176]
[1752015794074,2.93795869,2611.2,2611.1,27.36596]
[1752015794472,3.70369869,2611.2,2611.1,27.36596]
[1752015794676,1.6474,2611.2,2611.1,27.36596]
[1752015794974,0.6503,2611.2,2611.1,27.36596]
[1752015795578,1.41604,2611.2,2611.1,27.36596]
[1752015795979,2.41314,2611.2,2611.1,26.6002]
[1752015796479,2.41314,2611.2,2611.1,0.6422]
[1752015796678,2.41314,2611.2,2611.1,26.5982]
[1752015797876,2.41314,2611.2,2611.1,27.36397]
[1752015798182,2.41314,2611.2,2611.1,26.5982]
[1752015798580,2.41314,2611.2,2611.1,27.36397]
[1752015798777,2.41314,2611.2,2611.1,26.5982]
[1752015799681,2.41314,2611.2,2611.1,27.36397]
[1752015800180,2.41314,2611.2,2611.1,26.5982]
[1752015800482,2.41314,2611.2,2611.1,27.36397]
[1752015801378,3.70369869,2611.2,2611.1,27.36397]
[1752015802680,3.70369869,2611.2,2611.1,27.36597]
[1752015805385,3.70369869,2611.2,2611.1,26.6002]